bitfinex-derivatives/quotes_ETHF0:USTF0_20241008
["timestamp","ask_amount","ask_price","bid_price","bid_amount"]
[1728400116697,3.22641929,2437.9,2437.8,0.41033]
[1728400116897,3.22641929,2438.0,2437.7,3.2]
[1728400117195,3.22641929,2438.0,2437.9,3.61033]
[1728400118199,3.63672929,2438.0,2437.9,3.61033]
[1728400118591,3.22641929,2438.0,2437.9,3.61033]
[1728400119198,3.63672929,2438.0,2437.9,3.61033]
[1728400119395,3.22641929,2438.0,2437.9,3.61033]
[1728400119595,3.22641929,2438.0,2437.9,7.71193]
[1728400120093,3.22641929,2438.1,2437.9,3.2]
[1728400120298,3.63670929,2438.1,2438.0,0.41031]
[1728400120499,3.22641929,2438.1,2438.0,0.41031]
[1728400120893,3.63670929,2438.1,2438.0,0.41031]
[1728400121096,0.41029,2438.1,2438.0,0.41031]
[1728400121596,5.22898811,2438.1,2438.0,0.41031]
[1728400122301,0.41031,2438.0,2437.9,1.43962]
[1728400122504,3.6364576,2438.0,2437.9,0.41032]
[1728400122795,3.6364576,2438.0,2437.5,1.5267371]
[1728400122796,0.41035,2437.9,2437.8,0.41033]
[1728400122992,0.41038,2437.7,2437.6,0.41036]
[1728400123506,4.51278,2437.7,2437.6,0.41036]
[1728400123797,5.56718,2437.7,2437.6,0.41036]
[1728400124393,3.63690346,2437.8,2437.7,0.41036]
[1728400124700,3.22655346,2437.8,2437.7,0.41036]
[1728400124898,3.22655346,2437.9,2437.7,7.3024]
[1728400125200,3.63687346,2438.0,2437.8,0.9998]
[1728400125401,3.22655346,2438.0,2437.5,3.2]
[1728400125588,3.22655346,2438.0,2437.3,3.6875197]
[1728400125589,1.02592,2437.7,2437.3,6.4078]
[1728400125893,1.02592,2437.7,2436.9,2.1710562]
[1728400125894,4.25258346,2437.5,2436.9,6.4078]
[1728400126093,2.68916373,2437.0,2436.9,6.4078]
[1728400126295,2.68916373,2437.1,2437.0,0.41048]
[1728400126498,0.41046,2437.2,2437.1,0.41045]
[1728400128198,5.28102346,2437.4,2437.2,0.41043]
[1728400128199,0.41044,2437.3,2437.2,0.41043]
[1728400128904,4.51364,2437.3,2437.2,0.41043]
[1728400129095,0.41044,2437.3,2437.2,0.41043]
[1728400129702,4.51364,2437.3,2437.2,0.41043]
[1728400130705,0.41044,2437.3,2437.2,0.41043]
[1728400130910,1.0284,2437.4,2437.1,3.2]
[1728400131106,3.22655346,2437.5,2437.4,0.41041]
[1728400131300,2.68488383,2437.5,2437.4,4.1024]
[1728400131611,2.14778177,2437.5,2437.4,6.59701]
[1728400132509,2.14778177,2437.6,2437.5,0.4104]
[1728400132709,2.14778177,2437.6,2437.5,6.8182]
[1728400132909,2.14778177,2437.6,2437.5,10.9206]
[1728400133413,2.68488383,2437.7,2437.5,3.2078]
[1728400133609,2.68488383,2437.7,2437.6,3.61038]
[1728400134210,3.09524383,2437.7,2437.6,3.61038]
[1728400134600,4.1024,2437.7,2437.4,1.0735]
[1728400134906,0.41041,2437.5,2437.4,0.4104]
[1728400136706,7.32895346,2437.5,2437.1,4.2287]
[1728400137004,0.41045,2437.3,2437.2,0.41044]
[1728400137204,0.41045,2437.2,2437.1,4.63916]
[1728400137403,1.02604,2437.4,2436.9,3.2]
[1728400137404,3.22655346,2437.4,2436.9,3.2]
[1728400137605,0.41051,2436.9,2436.8,0.41051]
[1728400138006,3.09539802,2436.9,2436.8,0.41051]
[1728400138207,0.41051,2436.9,2436.8,0.41051]
[1728400139312,2.55759212,2436.9,2436.8,0.41051]
[1728400139507,2.14708212,2436.9,2436.8,0.41051]
[1728400140309,2.55758212,2436.9,2436.8,0.41051]
[1728400140505,2.14708212,2436.9,2436.8,0.41051]
[1728400140710,2.14708212,2436.9,2436.8,4.51451]
[1728400140906,2.68488802,2437.1,2436.8,4.51451]
[1728400140907,2.14708212,2437.0,2436.8,4.104]
[1728400141112,2.14708212,2437.1,2436.9,3.2]
[1728400141314,2.14708212,2437.1,2437.0,0.41048]
[1728400141717,2.14708212,2437.1,2437.0,1.48018]
[1728400142422,2.55754212,2437.1,2437.0,1.48018]
[1728400142607,2.14708212,2437.1,2437.0,1.48018]
[1728400142811,2.14708212,2437.1,2437.0,5.58338]
[1728400143116,2.14708212,2437.3,2437.2,0.41045]
[1728400143314,4.83197014,2437.5,2437.3,4.1032]
[1728400143518,2.14708212,2437.6,2437.4,4.3047]
[1728400143719,2.14708212,2437.7,2437.4,4.3047]
[1728400143915,2.14708212,2437.7,2437.6,0.41038]
[1728400145013,3.09521802,2437.9,2437.7,0.41036]
[1728400145014,2.14708212,2437.8,2437.7,0.41036]
[1728400145409,2.14708212,2437.8,2437.7,4.51276]
[1728400145922,2.14708212,2437.8,2437.7,0.41036]
[1728400146113,2.14708212,2437.8,2437.7,4.51276]
[1728400146417,2.14708212,2437.8,2437.7,0.41036]
[1728400146718,2.68488802,2437.9,2437.7,4.1024]
[1728400146719,2.14708212,2437.9,2437.7,4.1024]
[1728400146923,2.14551495,2437.9,2437.7,0.41036]
[1728400147220,2.14551495,2437.9,2437.8,0.41034]
[1728400147614,2.14551495,2437.9,2437.8,4.51194]
[1728400148413,1.00188212,2437.9,2437.8,10.51194]
[1728400148619,3.22655346,2438.3,2437.9,1.02582]
[1728400148620,2.68488802,2438.3,2437.9,1.02582]
[1728400148811,2.68488802,2438.3,2438.2,0.41028]
[1728400151224,3.09514802,2438.3,2438.2,0.41028]
[1728400151718,2.68488802,2438.3,2438.2,0.41028]
[1728400152316,0.41029,2438.1,2438.0,0.48617646]
[1728400152516,0.41029,2438.1,2438.0,0.89648646]
[1728400152719,3.09161954,2438.1,2438.0,0.89648646]
[1728400152914,2.68132954,2438.1,2438.0,0.89648646]
[1728400153117,2.68132954,2438.2,2438.1,0.41029]
[1728400153420,0.41028,2438.2,2438.1,1.44118]
[1728400153630,2.68132954,2438.3,2438.0,0.4103]
[1728400153817,0.41029,2438.1,2438.0,0.4103]
[1728400154017,3.09161954,2438.1,2438.0,0.4103]
[1728400154324,2.68132954,2438.2,2438.0,0.4103]
[1728400154516,3.09161954,2438.1,2438.0,0.4103]
[1728400154913,1.02567,2438.3,2437.4,1.02603]
[1728400154914,1.0258,2438.0,2437.4,1.02603]
[1728400155116,0.41033,2437.9,2437.8,0.41033]
[1728400155527,0.41037,2437.8,2437.7,0.41035]
[1728400155716,0.41038,2437.7,2437.6,0.41037]
[1728400155912,3.72823524,2437.9,2437.8,0.41034]
[1728400156124,0.41035,2437.8,2437.7,0.41034]
[1728400156324,3.72823524,2437.9,2437.4,2.56923083]
[1728400156521,4.13858524,2437.9,2437.8,0.41034]
[1728400157725,0.41036,2437.8,2437.7,0.41035]
[1728400158229,0.41037,2437.7,2437.6,0.41037]
[1728400158524,3.72823524,2437.9,2437.4,1.0448]
[1728400158717,0.41039,2437.6,2437.5,0.41038]
[1728400158917,2.68153524,2437.7,2437.3,3.2078]
[1728400159125,1.02596,2437.6,2437.2,1.0769]
[1728400159431,1.02596,2437.6,2437.4,0.41041]
[1728400159432,3.09193524,2437.5,2437.4,0.41041]
[1728400159623,0.41043,2437.4,2437.3,0.41042]
[1728400159820,0.41043,2437.3,2437.2,1.48733]
[1728400160324,0.41042,2437.4,2437.3,0.41041]
[1728400160529,3.70084776,2437.5,2437.2,1.0769]
[1728400160826,0.41043,2437.4,2437.3,0.41042]
[1728400161323,0.41045,2437.2,2437.1,0.41045]
[1728400162024,2.68264776,2437.3,2436.8,1.0251]
[1728400162229,0.41048,2437.1,2437.0,0.41047]
[1728400162818,0.41048,2437.1,2436.8,1.0251]
[1728400162819,2.68264776,2437.2,2436.8,2.05139]
[1728400163020,3.09310776,2437.2,2437.1,0.41046]
[1728400163519,2.68264776,2437.3,2436.9,1.02623]
[1728400163822,2.68264776,2437.3,2437.2,0.41045]
[1728400164123,1.0182,2437.5,2437.3,0.41043]
[1728400164124,0.41043,2437.4,2437.3,0.41043]
[1728400164922,3.09250522,2437.4,2437.3,0.41043]
[1728400165227,2.68207522,2437.4,2437.3,0.41043]
[1728400165729,1.1093,2437.6,2437.3,4.1032]
[1728400165730,2.68207522,2437.6,2437.3,4.1032]
[1728400166030,2.68207522,2437.6,2437.5,0.4104]
[1728400166031,3.09246522,2437.6,2437.5,0.4104]
[1728400166231,0.41039,2437.6,2437.5,0.4104]
[1728400166921,2.68207522,2437.6,2437.5,0.4104]
[1728400167126,0.41038,2437.6,2437.5,0.4104]
[1728400167434,3.09245522,2437.6,2437.5,0.4104]
[1728400168030,3.09244522,2437.7,2437.4,1.0552]
[1728400168332,3.09244522,2437.7,2437.6,0.41038]
[1728400168931,2.68207522,2437.7,2437.6,0.41038]
[1728400169126,3.09243522,2437.7,2437.6,0.41038]
[1728400169325,2.68207522,2437.7,2437.6,0.41038]
[1728400169630,4.14873522,2437.8,2437.7,0.41036]
[1728400170131,4.14887703,2437.8,2437.7,0.41036]
[1728400171125,1.46666,2437.8,2437.7,0.41036]
[1728400172232,1.0563,2437.8,2437.7,0.41036]
[1728400172827,1.46664,2437.8,2437.7,0.41036]
[1728400173027,1.0563,2437.8,2437.7,0.41036]
[1728400173228,3.7387359,2437.8,2437.7,0.41036]
[1728400174427,3.7387359,2437.8,2437.6,0.41036]
[1728400174428,0.41037,2437.7,2437.6,0.41036]
[1728400174834,3.7387359,2437.8,2437.7,0.41036]
[1728400175634,4.1490759,2437.8,2437.7,0.41036]
[1728400175834,2.6824359,2437.8,2437.7,0.41036]
[1728400176039,3.0927759,2437.8,2437.7,0.41036]
[1728400176235,2.6824359,2437.8,2437.7,0.41036]
[1728400176941,3.0927759,2437.8,2437.7,0.41036]
[1728400177441,2.6824359,2437.8,2437.7,0.41036]
[1728400178142,3.0927759,2437.8,2437.7,0.41036]
[1728400179240,0.41034,2437.8,2437.7,0.41036]
[1728400179639,3.0934175,2437.8,2437.7,0.41036]
[1728400182443,3.21917731,2438.0,2437.5,4.22599]
[1728400182640,2.14658707,2437.7,2437.5,3.2]
[1728400182840,2.14658707,2437.7,2437.6,0.41038]
[1728400184042,0.41036,2437.7,2437.6,0.41038]
[1728400184237,3.09359384,2437.7,2437.6,0.41038]
[1728400184444,4.14799384,2437.7,2437.6,0.41038]
[1728400185249,1.46476,2437.7,2437.6,0.41038]
[1728400187045,4.14951713,2437.7,2437.6,0.41038]
[1728400187448,1.46476,2437.7,2437.6,0.41038]
[1728400188151,4.14986129,2437.7,2437.6,0.41038]
[1728400188345,1.46476,2437.7,2437.6,0.41038]
[1728400188540,4.150242,2437.7,2437.6,0.41038]
[1728400188957,3.7398665,2437.7,2437.6,0.41038]
[1728400190653,2.6854665,2437.7,2437.6,0.41038]
[1728400192763,2.6854665,2437.8,2437.6,7.3024]
[1728400193058,5.36137731,2438.1,2437.8,0.41034]
[1728400193059,2.6854665,2437.9,2437.8,0.41034]
[1728400194147,0.41033,2437.9,2437.8,0.41034]
[1728400194852,5.36137731,2438.1,2437.6,4.70491927]
[1728400195046,2.14834435,2437.7,2437.6,4.08936927]
[1728400195455,2.14834435,2437.7,2437.6,8.19176927]
[1728400197852,2.14834435,2437.7,2437.6,4.99176927]
[1728400198054,2.68543044,2437.7,2437.6,0.88936927]
[1728400198353,2.68543044,2437.7,2437.6,0.41038]
[1728400198563,2.68543044,2437.8,2437.7,0.41036]
[1728400199057,2.68543044,2437.8,2437.6,3.2]
[1728400199058,0.41033,2437.9,2437.8,0.41034]
[1728400199562,0.41032,2438.0,2437.9,0.41031]
[1728400200259,5.36137731,2438.1,2437.7,1.0259]
[1728400200455,5.77168731,2438.1,2438.0,0.41031]
[1728400200656,1.0272,2438.1,2438.0,0.41031]
[1728400200851,3.21917731,2438.2,2438.1,0.41029]
[1728400201059,0.41028,2438.2,2438.1,0.41029]
[1728400201258,3.62945731,2438.2,2438.1,0.41029]
[1728400201454,0.41028,2438.2,2438.1,0.41029]
[1728400201661,3.62945731,2438.3,2438.2,0.41028]
[1728400201854,3.21917731,2438.3,2437.9,3.67621276]
[1728400202054,0.41029,2438.2,2438.1,0.41028]
[1728400202760,0.41029,2438.2,2437.9,2.1496]
[1728400202966,0.41032,2438.0,2437.9,0.41031]
[1728400203361,2.54342,2438.0,2437.9,0.41031]
[1728400205164,3.62947731,2438.1,2437.7,4.2337]
[1728400205361,1.0257,2438.2,2437.7,4.2337]
[1728400205362,2.55967657,2437.8,2437.7,3.61815]
[1728400205558,6.41917731,2437.9,2437.0,1.06895747]
[1728400205752,2.14957896,2437.3,2436.9,1.0181]
[1728400205952,2.14991346,2437.1,2436.9,1.0181]
[1728400206155,3.21917731,2437.5,2436.9,1.4286]
[1728400206156,2.14995636,2437.0,2436.9,1.4286]
[1728400206462,2.14995636,2437.0,2436.9,4.6286]
[1728400206657,2.14995636,2437.0,2436.9,8.7318]
[1728400207062,2.14995636,2437.0,2436.9,4.6286]
[1728400208962,0.41048,2437.0,2436.9,0.4105]
[1728400209465,4.51368,2437.0,2436.9,0.4105]
[1728400211057,0.41048,2437.0,2436.9,0.4105]
[1728400211669,2.1456,2437.1,2436.7,4.3006]
[1728400211960,0.41055,2436.7,2436.6,0.41055]
[1728400212567,3.0958273,2436.7,2436.6,0.41055]
[1728400213067,3.0958273,2436.7,2436.3,4.22649]
[1728400213260,3.0958273,2436.7,2436.5,0.41055]
[1728400213261,3.19208476,2436.6,2436.5,0.41055]
[1728400213758,3.19208476,2436.6,2436.4,0.41058]
[1728400213759,0.41056,2436.5,2436.4,0.41058]
[1728400214865,3.19132353,2436.6,2436.5,0.41056]
[1728400215169,2.14742353,2436.6,2436.5,0.41056]
[1728400215357,2.14742353,2436.8,2436.5,10.5118]
[1728400215564,2.14742353,2437.0,2436.9,0.4105]
[1728400215861,2.55788353,2437.1,2437.0,0.41048]
[1728400216472,2.14742353,2437.1,2437.0,0.41048]
[1728400216664,2.55788353,2437.1,2437.0,0.41048]
[1728400216858,2.14742353,2437.1,2436.8,2.1706]
[1728400217064,0.4105,2436.9,2436.7,0.41051]
[1728400217260,3.59091353,2437.0,2436.9,0.4105]
[1728400217656,2.14742353,2437.0,2436.7,3.2]
[1728400217857,6.42697731,2437.5,2437.2,0.41045]
[1728400217858,2.55785353,2437.3,2437.2,0.41045]
[1728400218063,2.14742353,2437.3,2437.2,0.41045]
[1728400218566,2.14742353,2437.3,2436.9,6.8183]
[1728400218767,2.55786353,2437.3,2437.2,0.41045]
[1728400218976,2.14742353,2437.3,2437.2,0.41045]
[1728400219571,2.55785353,2437.3,2437.2,0.41045]
[1728400220669,18.6771,2437.3,2436.6,1.0273]
[1728400220861,2.14518017,2436.8,2436.2,1.0183]
[1728400221061,0.41058,2436.5,2436.4,0.41057]
[1728400221864,0.41057,2436.5,2436.4,0.41056]
[1728400222064,2.14518017,2436.6,2436.3,0.41059]
[1728400222065,0.41059,2436.4,2436.3,0.41059]
[1728400223269,3.17156017,2436.6,2436.2,1.0183]
[1728400223468,2.14518017,2436.6,2436.2,1.0183]
[1728400223663,0.41055,2436.6,2436.5,0.41056]
[1728400227274,2.52874,2436.7,2436.6,0.41055]
[1728400227679,6.63274,2436.7,2436.6,0.41055]
[1728400228074,2.52874,2436.7,2436.6,0.41055]
[1728400230679,2.52874,2436.7,2436.3,4.22649]
[1728400230874,0.41056,2436.6,2436.5,0.41055]
[1728400231270,0.41059,2436.5,2436.4,0.41057]
[1728400231671,4.51459,2436.5,2436.0,1.0312]
[1728400231983,0.41063,2436.2,2436.1,0.41062]
[1728400232279,0.41059,2436.4,2436.3,0.41057]
[1728400232668,4.51539,2436.4,2436.3,0.41057]
[1728400233072,2.14518017,2436.6,2436.0,1.0312]
[1728400233271,0.41056,2436.6,2436.5,0.41056]
[1728400233684,2.52874,2436.7,2436.6,0.41055]
[1728400235678,0.41056,2436.6,2436.5,0.41056]
[1728400236676,2.1182,2436.7,2436.4,1.0883]
[1728400236677,1.0596,2436.7,2436.4,1.0883]
[1728400236985,1.0596,2436.7,2436.6,0.41055]
[1728400237479,1.47013,2436.7,2436.6,0.41055]
[1728400237983,0.41055,2436.6,2436.5,1.45716]
[1728400238975,0.41056,2436.5,2436.4,1.49887]
[1728400239886,0.41055,2436.6,2436.5,0.41055]
[1728400240187,1.0596,2436.7,2436.6,0.41055]
[1728400240377,1.47013,2436.7,2436.6,0.41055]
[1728400241480,2.14518017,2437.0,2436.6,7.72235]
[1728400241687,2.55565017,2437.1,2437.0,0.41048]
[1728400241882,0.41047,2437.1,2437.0,0.41048]
[1728400242491,0.41047,2437.1,2436.9,1.0711]
[1728400242492,2.55563017,2437.2,2437.1,0.41046]
[1728400242787,3.18728017,2437.3,2436.9,1.0711]
[1728400243088,2.14518017,2437.4,2437.3,0.41043]
[1728400243683,2.14518017,2437.5,2437.4,0.41041]
[1728400243988,3.24948017,2437.6,2437.2,7.425]
[1728400244189,3.24948017,2437.6,2437.5,0.4104]
[1728400244392,0.41041,2437.5,2437.4,0.4104]
[1728400244577,0.41043,2437.3,2437.2,1.0172]
[1728400244777,0.41046,2437.2,2437.1,0.41045]
[1728400244981,1.02606,2437.4,2436.9,1.55890836]
[1728400245284,1.02606,2437.4,2437.2,0.41043]
[1728400245285,0.41044,2437.3,2437.2,0.41043]
[1728400245475,0.41044,2437.3,2436.9,1.0711]
[1728400245476,0.41048,2437.1,2436.9,1.0711]
[1728400245681,2.14242426,2437.2,2436.9,1.0711]
[1728400245882,1.0331,2437.0,2436.6,3.2078]
[1728400246078,1.02627,2436.9,2436.5,0.49148464]
[1728400246284,3.17552426,2437.0,2436.4,3.2]
[1728400246484,0.4105,2436.9,2436.8,0.4105]
[1728400246682,3.17552426,2437.0,2436.9,0.4105]
[1728400246883,2.14242426,2437.0,2436.9,0.4105]
[1728400247389,0.41047,2437.1,2436.7,1.02632]
[1728400247390,2.14345102,2437.1,2437.0,0.41048]
[1728400248294,2.55390102,2437.2,2437.1,0.41046]
[1728400248491,3.09192522,2437.2,2437.1,0.41046]
[1728400248701,2.68147522,2437.2,2437.1,0.41046]
[1728400248889,2.14526459,2437.2,2437.1,4.51366]
[1728400249090,2.14506358,2437.3,2437.2,0.41045]
[1728400249389,2.68147522,2437.6,2437.5,0.4104]
[1728400249994,2.14550596,2437.6,2437.5,0.4104]
[1728400251491,2.68147522,2437.7,2437.6,0.41038]
[1728400252089,2.68147522,2437.8,2437.7,0.41036]
[1728400252596,3.09181522,2437.8,2437.7,0.41036]
[1728400254492,1.52953,2437.9,2437.8,0.41034]
[1728400254986,1.52953,2437.9,2437.4,1.59281726]
[1728400254987,1.1192,2437.9,2437.4,1.59281726]
[1728400255186,0.41037,2437.7,2437.6,0.41037]
[1728400255700,0.41037,2437.7,2437.4,1.59281726]
[1728400255701,2.14475757,2437.7,2437.4,1.59281726]
[1728400255904,2.14475757,2437.6,2437.4,1.59281726]
[1728400256088,2.14475757,2437.5,2437.4,1.524]
[1728400256396,5.34475757,2437.5,2436.9,4.2763]
[1728400256591,5.34475757,2437.5,2437.1,0.41045]
[1728400256592,0.41046,2437.2,2437.1,0.41045]
[1728400256797,0.41048,2437.0,2436.9,0.41048]
[1728400259194,2.55553224,2437.1,2437.0,0.41048]
[1728400259394,2.55553224,2437.1,2436.9,0.41048]
[1728400259395,0.41049,2437.0,2436.9,0.41048]
[1728400259691,0.4105,2436.9,2436.8,0.4105]
[1728400260287,2.14506224,2437.0,2436.6,3.2078]
[1728400260494,0.41052,2436.8,2436.7,0.41051]
[1728400260692,3.24526224,2436.9,2436.8,0.41051]
[1728400260693,2.14506224,2436.9,2436.8,0.41051]
[1728400260894,2.14506224,2437.0,2436.9,0.4105]
[1728400261100,2.14507849,2437.1,2437.0,0.41048]
[1728400261692,2.55553849,2437.1,2437.0,0.41048]
[1728400262294,0.41046,2437.1,2437.0,0.41048]
[1728400262494,0.41049,2437.0,2436.9,0.41048]
[1728400262791,2.14513145,2437.0,2436.9,0.41048]
[1728400262990,2.55561145,2437.0,2436.9,0.41048]
[1728400266004,0.41048,2437.0,2436.9,0.41048]
[1728400266202,2.55561145,2437.0,2436.9,0.41048]
[1728400266596,2.14513145,2437.0,2436.6,4.23417]
[1728400266805,2.55563145,2437.0,2436.9,0.41049]
[1728400267196,0.41051,2436.9,2436.8,0.4105]
[1728400269206,0.41052,2436.8,2436.7,0.41051]
[1728400270205,0.41055,2436.6,2436.5,1.46156]
[1728400270403,3.56657952,2436.7,2436.6,0.41055]
[1728400270801,2.14623952,2436.8,2436.7,0.41053]
[1728400271103,2.55674952,2436.8,2436.7,0.41053]
[1728400271607,0.41053,2436.7,2436.6,1.46684]
[1728400271813,3.56665145,2436.7,2436.6,1.46684]
[1728400273204,3.15612145,2436.7,2436.6,1.46684]
[1728400273513,3.56665145,2436.7,2436.6,1.46684]
[1728400274210,1.42033,2436.7,2436.6,1.46684]
[1728400274406,3.15612145,2436.7,2436.6,1.46684]
[1728400274613,2.14632145,2436.7,2436.6,1.46684]
[1728400276113,2.55683145,2436.8,2436.7,0.41053]
[1728400276612,1.02633,2436.7,2436.3,3.2078]
[1728400276809,0.41058,2436.4,2436.3,3.6184]
[1728400277111,3.09213385,2436.4,2436.3,3.2078]
[1728400277317,0.41061,2436.2,2436.1,0.41063]
[1728400277612,0.41066,2435.9,2435.8,0.41067]
[1728400277823,0.41067,2435.9,2435.8,0.41067]
[1728400278118,2.55777201,2435.9,2435.8,0.41068]
[1728400278312,0.41067,2435.9,2435.8,0.41068]
[1728400278727,0.41067,2435.9,2435.5,2.1674]
[1728400278919,2.55777201,2435.9,2435.8,0.41068]
[1728400279316,0.41067,2435.9,2435.8,0.41068]
[1728400279612,2.55777201,2435.9,2435.8,0.41068]
[1728400280012,0.41068,2435.8,2435.7,0.41068]
[1728400280214,0.41068,2435.9,2435.5,2.1674]
[1728400280407,0.41069,2435.8,2435.7,0.4107]
[1728400281121,0.4107,2435.7,2435.6,0.4107]
[1728400281319,0.41072,2435.6,2435.5,2.57812]
[1728400281517,0.41072,2435.6,2435.5,1.093]
[1728400282219,0.41078,2435.3,2435.2,0.41077]
[1728400282625,0.41076,2435.4,2435.3,0.41076]
[1728400282826,3.23126,2435.5,2435.1,3.2078]
[1728400283014,0.41077,2435.3,2435.2,0.41077]
[1728400283216,0.41078,2435.3,2435.2,0.41077]
[1728400283521,0.41078,2435.2,2435.1,0.41079]
[1728400283726,1.0269,2435.4,2435.0,2.118]
[1728400284031,0.41079,2435.2,2435.1,0.41078]
[1728400285425,0.41079,2435.2,2434.7,3.41067872]
[1728400285426,7.3064,2435.2,2434.6,1.0699]
[1728400285720,1.02698,2435.2,2434.6,4.22722]
[1728400285922,0.41083,2435.0,2434.8,0.41084]
[1728400286117,0.41084,2434.9,2434.8,0.41084]
[1728400286317,0.41085,2434.8,2434.7,1.49056]
[1728400286714,5.31446,2435.0,2434.4,1.1201]
[1728400286915,0.41086,2434.8,2434.7,0.41087]
[1728400287219,1.0477,2434.9,2434.4,1.1201]
[1728400287424,0.4109,2434.5,2434.4,1.53101]
[1728400287627,0.41089,2434.6,2434.5,0.4109]
[1728400288017,0.4109,2434.5,2434.4,1.53101]
[1728400288221,0.4109,2434.6,2434.5,0.4109]
[1728400288428,1.0477,2434.9,2434.4,1.1201]
[1728400288429,0.41088,2434.7,2434.6,0.41088]
[1728400288628,0.41086,2434.8,2434.7,0.41085]
[1728400288816,8.52226,2435.0,2434.4,1.1201]
[1728400288817,1.49823,2435.0,2434.9,0.41083]
[1728400289021,0.41083,2435.0,2434.9,0.41083]
[1728400289723,0.41083,2435.0,2434.8,1.1119]
[1728400289724,0.41083,2434.9,2434.8,1.1119]
[1728400289924,11.6249,2435.3,2434.4,1.1201]
[1728400290126,0.41088,2434.6,2434.5,1.1119]
[1728400290629,0.41088,2434.6,2434.1,0.41096]
[1728400290630,0.41095,2434.2,2434.1,0.41096]
[1728400291128,0.41095,2434.3,2434.2,0.41094]
[1728400291831,3.2078,2434.7,2434.0,1.0168]
[1728400292030,1.0272,2434.7,2434.1,3.2]
[1728400292327,1.0272,2434.7,2434.5,0.41089]
[1728400292328,0.41088,2434.7,2434.5,0.41089]
[1728400292525,0.41087,2434.7,2434.5,0.41089]
[1728400292727,0.41087,2434.7,2434.4,1.0475]
[1728400292932,1.52156,2434.8,2434.7,0.41087]
[1728400293122,5.62876,2434.8,2434.7,0.41087]
[1728400293623,2.1953,2435.1,2434.5,4.2168]
[1728400293819,1.02709,2434.9,2434.5,1.0168]
[1728400294024,0.41086,2434.8,2434.7,0.41086]
[1728400295136,0.41088,2434.7,2434.6,0.41087]
[1728400295533,0.41088,2434.6,2434.5,1.42769]
[1728400295830,3.2078,2435.0,2434.3,0.41093]
[1728400295831,1.02715,2434.8,2434.3,0.41093]
[1728400296023,3.2078,2435.0,2434.2,1.44064]
[1728400296024,0.41093,2434.3,2434.2,1.44064]
[1728400297221,2.1594,2434.6,2434.2,1.0297]
[1728400297426,0.41093,2434.4,2434.3,0.41092]
[1728400298937,0.41091,2434.5,2434.4,0.41091]
[1728400299327,4.135,2434.9,2434.4,1.0273]
[1728400299533,4.135,2434.9,2434.7,0.41087]
[1728400299534,0.41087,2434.8,2434.7,0.41087]
[1728400300039,0.41088,2434.7,2434.6,0.41087]
[1728400300433,0.41086,2434.8,2434.7,0.41085]
[1728400301044,4.54584,2434.9,2434.8,0.41085]
[1728400301339,0.41084,2434.9,2434.8,0.41085]
[1728400303034,16.515,2434.9,2433.9,6.4078]
[1728400303240,0.41093,2434.4,2434.3,0.41092]
[1728400303631,1.46053,2434.4,2434.3,0.41092]
[1728400304032,0.41093,2434.3,2434.0,1.0625]
[1728400304236,0.41097,2434.1,2434.0,0.41098]
[1728400305642,1.52047,2434.2,2434.1,0.41097]
[1728400306938,0.41097,2434.2,2434.1,0.41097]
[1728400307953,0.41097,2434.2,2433.0,1.05957384]
[1728400307954,0.41114,2433.1,2433.0,1.05957384]
[1728400308245,7.72154,2433.1,2433.0,1.05957384]
[1728400308441,7.3104,2433.1,2432.9,0.41117]
[1728400308750,0.41116,2433.0,2432.9,0.41097]
[1728400308944,4.1104,2433.0,2432.4,1.0818]
[1728400309143,3.2,2433.1,2432.8,0.41097]
[1728400309341,0.41116,2433.0,2432.8,0.82215]
[1728400309735,0.41116,2433.0,2432.8,0.41097]
[1728400310048,0.41117,2432.9,2432.8,0.41097]
[1728400310243,0.41124,2432.5,2432.4,1.0818]
[1728400310451,0.41128,2432.3,2432.1,0.4113]
[1728400310744,1.0281,2432.5,2432.3,0.41097]
[1728400310934,7.1578,2432.7,2431.8,5.3302]
[1728400311137,0.41126,2432.4,2432.3,0.41097]
[1728400313347,4.1112,2432.4,2432.0,0.41132]
[1728400313645,0.41129,2432.2,2432.0,0.41132]
[1728400313946,2.15136,2432.6,2431.8,5.8247674]
[1728400314140,2.15136,2432.6,2432.3,0.41097]
[1728400314141,0.41126,2432.4,2432.3,0.41097]
[1728400315652,0.41132,2432.1,2431.9,0.41133]
[1728400315944,0.41127,2432.3,2432.2,0.41097]
[1728400317850,0.41127,2432.3,2432.2,0.82226]
[1728400318053,1.1233,2432.6,2432.2,0.41097]
[1728400318252,1.53452,2432.6,2432.5,0.41097]
[1728400319749,3.2078,2432.7,2432.6,0.41122]
[1728400319952,3.2078,2432.7,2432.6,0.82219]
[1728400320269,1.1271,2433.1,2432.6,0.41097]
[1728400320555,1.53824,2433.1,2433.0,0.41097]
[1728400320949,5.48824,2433.1,2433.0,0.41097]
[1728400321752,15.1875,2433.1,2432.3,3.2078]
[1728400321945,3.95,2432.8,2432.6,0.41097]
[1728400322253,0.4112,2432.7,2432.6,0.41097]
[1728400322653,3.2078,2433.0,2432.6,0.41097]
[1728400322852,3.61895,2433.0,2432.9,0.41097]
[1728400323647,1.02798,2432.9,2432.1,0.48956329]
[1728400323851,3.2078,2432.7,2432.5,0.41097]
[1728400324048,2.1731,2432.6,2431.9,3.3061]
[1728400324252,0.41126,2432.4,2432.3,0.41097]
[1728400324451,3.61906,2432.4,2432.3,0.41097]
[1728400325154,3.61906,2432.4,2431.3,3.68657]
[1728400325155,0.41139,2431.6,2431.5,0.4114]
[1728400325355,1.02837,2431.9,2431.5,0.4114]
[1728400325356,1.0284,2431.8,2431.5,0.4114]
[1728400325658,0.41139,2431.6,2431.5,0.41097]
[1728400326349,0.41139,2431.6,2431.5,0.82238]
[1728400326550,0.41139,2431.6,2431.5,0.41097]
[1728400328459,0.41142,2431.4,2431.3,0.41144]